[Event "Mitropa Online Cup Women 2021"]
[Site "Hybrid"]
[Date "2021.05.04"]
[Round "6.3"]
[White "Mayrhuber, Nikola"]
[Black "Hund, Sarah"]
[Result "1-0"]
[ECO "D34"]
[WhiteElo "2040"]
[BlackElo "2049"]
[Annotator "NA"]
[PlyCount "103"]
[EventDate "2021.05.04"]
[EventType "team-tourn"]
[EventCountry "NET"]
[SourceTitle "playchess.com"]
[Source "ChessBase"]
[SourceQuality "1"]
[BlackTeam "Switzerland"]
[BlackTeamCountry "SUI"]
[TimeControl "40/5400+30:1800+30"]

1. d4 {[%emt 0:00:00]} d5 {[%emt 0:00:21]} 2. c4 {[%emt 0:00:09]} e6 {[%emt 0:00:23]} 3. Nc3 {[%emt 0:00:11]} c5 {[%emt 0:00:56]} 4. cxd5 {[%emt 0:00:13]} exd5 {[%emt 0:00:21]} 5. Nf3 {[%emt 0:00:18]} Nc6 {[%emt 0:00:15]} 6. g3 {[%emt 0:00:15]} Nf6 {[%emt 0:00:35]} 7. Bg2 {[%emt 0:00:19]} Be7 {[%emt 0:00:25]} 8. O-O {[%emt 0:00:17]} O-O {[%emt 0:00:20]} 9. b3 {[%emt 0:00:44]} Ne4 {[%emt 0:01:35]} 10. Bb2 {[%emt 0:01:51]} Bf6 {[%emt 0:00:50]} 11. Nxe4 {[%emt 0:01:19]} dxe4 {[%emt 0:00:27]} 12. Nd2 {[%emt 0:00:21]} e3 {[%emt 0:08:53]} 13. fxe3 {[%emt 0:02:45]} cxd4 {[%emt 0:00:44]} 14. Bxc6 {[%emt 0:00:36]} dxe3 {[%emt 0:04:46]} 15. Bxf6 {[%emt 0:06:18]} gxf6 {[%emt 0:07:54]} 16. Ne4 {[%emt 0:05:56]} Qxd1 {[%emt 0:06:10]} 17. Nxf6+ {[%emt 0:01:52]} Kg7 {[%emt 0:00:49]} 18. Raxd1 {[%emt 0:00:16]} bxc6 {[%emt 0:00:32]} 19. Rf3 {[%emt 0:08:09]} Ba6 {[%emt 0:04:01]} 20. Nh5+ {[%emt 0:07:23]} Kh6 {[%emt 0:10:37]} 21. Nf4 {[%emt 0:03:46]} Rfe8 {[%emt 0:09:52]} 22. Rd6+ {[%emt 0:09:00]} Kg7 {[%emt 0:01:20]} 23. Nh5+ {[%emt 0:00:53]} Kh8 {[%emt 0:02:50]} 24. Rxf7 {[%emt 0:03:39]} Rf8 {[%emt 0:05:19]} 25. Rxf8+ {[%emt 0:13:37]} Rxf8 {[%emt 0:00:18]} 26. Nf4 {[%emt 0:00:13]} Re8 {[%emt 0:13:14]} 27. Rd7 {[%emt 0:07:17]} Bc8 {[%emt 0:04:47]} 28. Rxa7 {[%emt 0:00:16]} Bf5 {[%emt 0:00:21]} 29. Ra4 {[%emt 0:07:13]} Rd8 {[%emt 0:06:21]} 30. Kg2 {[%emt 0:00:55]} Bb1 {[%emt 0:03:27]} 31. Kf3 {[%emt 0:01:35]} Re8 {[%emt 0:00:05]} 32. Ng2 {[%emt 0:02:29]} Kg7 {[%emt 0:01:22]} 33. Nxe3 {[%emt 0:00:55]} Kf6 {[%emt 0:00:09]} 34. a3 {[%emt 0:01:47]} Ke5 {[%emt 0:01:05]} 35. Ng4+ {[%emt 0:02:42]} Kd6 {[%emt 0:00:24]} 36. e4 {[%emt 0:02:30]} Bc2 {[%emt 0:00:15]} 37. Rd4+ {[%emt 0:00:20]} Kc7 {[%emt 0:01:06]} 38. Nf6 {[%emt 0:03:20]} Re7 {[%emt 0:00:28]} 39. b4 {[%emt 0:01:03]} Kb6 {[%emt 0:00:48]} 40. Nd7+ {[%emt 0:00:00]} Kb5 {[%emt 0:00:00]} 41. Nc5 {[%emt 0:02:42]} Ra7 {[%emt 0:01:12]} 42. e5 {[%emt 0:07:29]} Rxa3+ {[%emt 0:03:39]} 43. Kf4 {[%emt 0:00:08]} Ra2 {[%emt 0:00:43]} 44. Ne4 {[%emt 0:03:55]} Ra8 {[%emt 0:16:08]} 45. e6 {[%emt 0:00:51]} Bxe4 {[%emt 0:05:22]} 46. Rxe4 {[%emt 0:00:21]} c5 {[%emt 0:00:04]} 47. e7 {[%emt 0:01:08]} Re8 {[%emt 0:00:05]} 48. bxc5 {[%emt 0:00:20]} Kxc5 {[%emt 0:00:04]} 49. Kf5 {[%emt 0:00:49]} Kd5 {[%emt 0:00:19]} 50. Re2 {[%emt 0:00:12]} Kd6 {[%emt 0:00:53]} 51. Kf6 {[%emt 0:00:06]} Kd7 {[%emt 0:00:19]} 52. Kf7 {[%emt 0:00:07]} 1-0

[Event "Mitropa Online Cup Women 2021"]
[Site "Hybrid"]
[Date "2021.05.04"]
[Round "6.4"]
[White "Cvitan, Ena"]
[Black "Guichard, Pauline"]
[Result "0-1"]
[ECO "E48"]
[WhiteElo "2263"]
[BlackElo "2415"]
[Annotator "NA"]
[PlyCount "88"]
[EventDate "2021.05.04"]
[EventType "team-tourn"]
[EventCountry "NET"]
[SourceTitle "playchess.com"]
[Source "ChessBase"]
[SourceQuality "1"]
[WhiteTeam "Croatia"]
[BlackTeam "France"]
[WhiteTeamCountry "CRO"]
[BlackTeamCountry "FRA"]
[TimeControl "40/5400+30:1800+30"]

1. d4 {[%emt 0:00:00]} Nf6 {[%emt 0:00:10]} 2. c4 {[%emt 0:00:10]} e6 {[%emt 0:00:08]} 3. Nc3 {[%emt 0:00:06]} Bb4 {[%emt 0:00:09]} 4. e3 {[%emt 0:00:05]} O-O {[%emt 0:00:09]} 5. Bd3 {[%emt 0:00:09]} c5 {[%emt 0:00:11]} 6. Nge2 {[%emt 0:00:22]} d5 {[%emt 0:00:11]} 7. cxd5 {[%emt 0:00:10]} cxd4 {[%emt 0:00:11]} 8. exd4 {[%emt 0:00:09]} Nxd5 {[%emt 0:00:10]} 9. O-O {[%emt 0:00:20]} Nc6 {[%emt 0:00:12]} 10. Nxd5 {[%emt 0:01:17]} exd5 {[%emt 0:00:12]} 11. Be3 {[%emt 0:00:36]} Bd6 {[%emt 0:06:58]} 12. Re1 {[%emt 0:02:05]} Bg4 {[%emt 0:10:49]} 13. f3 {[%emt 0:21:01]} Be6 {[%emt 0:01:11]} 14. Rc1 {[%emt 0:04:29]} Qh4 {[%emt 0:04:08]} 15. g3 {[%emt 0:01:38]} Qf6 {[%emt 0:01:06]} 16. Kg2 {[%emt 0:06:49]} Rae8 {[%emt 0:13:04]} 17. Nc3 {[%emt 0:02:57]} Re7 {[%emt 0:12:13]} 18. Qd2 {[%emt 0:04:33]} h6 {[%emt 0:00:11]} 19. a3 {[%emt 0:09:54]} Kh8 {[%emt 0:09:08]} 20. Qf2 {[%emt 0:04:10]} Bc7 {[%emt 0:04:22]} 21. Rcd1 {[%emt 0:04:53]} Rd8 {[%emt 0:01:35]} 22. Bb1 {[%emt 0:11:08]} Bf5 {[%emt 0:00:32]} 23. Ba2 {[%emt 0:00:16]} Red7 {[%emt 0:02:15]} 24. b4 {[%emt 0:03:36]} Qg6 {[%emt 0:05:43]} 25. Kh1 {[%emt 0:01:52]} Ne7 {[%emt 0:02:45]} 26. Bb3 {[%emt 0:01:26]} Nc8 {[%emt 0:01:52]} 27. Na4 {[%emt 0:01:58]} Re7 {[%emt 0:05:20]} 28. g4 {[%emt 0:03:00]} Bd3 {[%emt 0:05:28]} 29. Nc5 {[%emt 0:01:08]} Bc4 {[%emt 0:00:19]} 30. Bc2 {[%emt 0:01:34]} Qf6 {[%emt 0:00:20]} 31. Nxb7 {[%emt 0:01:52]} Rde8 {[%emt 0:00:30]} 32. Ba4 {[%emt 0:00:46]} Rf8 {[%emt 0:01:51]} 33. Nc5 {[%emt 0:00:21]} Nb6 {[%emt 0:00:12]} 34. Bc2 {[%emt 0:01:09]} Rfe8 {[%emt 0:00:11]} 35. Nd3 {[%emt 0:07:39]} Bxd3 {[%emt 0:01:08]} 36. Bxd3 {[%emt 0:00:14]} Nc4 {[%emt 0:04:22]} 37. Bxc4 {[%emt 0:00:03]} dxc4 {[%emt 0:00:44]} 38. Bd2 {[%emt 0:00:20]} Bb6 {[%emt 0:06:34]} 39. Bc3 {[%emt 0:03:57]} Rxe1+ {[%emt 0:01:32]} 40. Bxe1 {[%emt 0:00:00]} Bxd4 {[%emt 0:00:00]} 41. Rxd4 {[%emt 0:02:54]} Rxe1+ {[%emt 0:01:58]} 42. Qxe1 {[%emt 0:01:24]} Qxd4 {[%emt 0:00:20]} 43. Qe8+ {[%emt 0:00:28]} Kh7 {[%emt 0:00:10]} 44. Qxf7 {[%emt 0:00:15]} Qd3 {[%emt 0:00:42]} 0-1

[Event "Mitropa Online Cup Women 2021"]
[Site "Hybrid"]
[Date "2021.05.04"]
[Round "6.4"]
[White "Navrotescu, Andreea-Cristiana"]
[Black "Medic, Mirjana"]
[Result "0-1"]
[ECO "D37"]
[WhiteElo "2247"]
[BlackElo "2147"]
[Annotator "NA"]
[PlyCount "124"]
[EventDate "2021.05.04"]
[EventType "team-tourn"]
[EventCountry "NET"]
[SourceTitle "playchess.com"]
[Source "ChessBase"]
[SourceQuality "1"]
[WhiteTeam "France"]
[BlackTeam "Croatia"]
[WhiteTeamCountry "FRA"]
[BlackTeamCountry "CRO"]
[TimeControl "40/5400+30:1800+30"]

1. d4 {[%emt 0:00:00]} d5 {[%emt 0:00:09]} 2. c4 {[%emt 0:00:07]} e6 {[%emt 0:00:06]} 3. Nc3 {[%emt 0:00:06]} Nf6 {[%emt 0:00:05]} 4. Nf3 {[%emt 0:00:08]} Be7 {[%emt 0:00:08]} 5. Bf4 {[%emt 0:00:08]} O-O {[%emt 0:00:24]} 6. e3 {[%emt 0:00:09]} b6 {[%emt 0:00:31]} 7. Rc1 {[%emt 0:00:08]} c5 {[%emt 0:01:42]} 8. cxd5 {[%emt 0:00:34]} Nxd5 {[%emt 0:01:38]} 9. Nxd5 {[%emt 0:00:42]} exd5 {[%emt 0:00:18]} 10. Bd3 {[%emt 0:15:31]} c4 {[%emt 0:11:59]} 11. Bb1 {[%emt 0:00:56]} Bb4+ {[%emt 0:00:17]} 12. Kf1 {[%emt 0:10:12]} Bd6 {[%emt 0:08:47]} 13. Ne5 {[%emt 0:17:20]} Be6 {[%emt 0:20:56]} 14. Qh5 {[%emt 0:08:04]} f5 {[%emt 0:02:19]} 15. g4 {[%emt 0:04:23]} Bxe5 {[%emt 0:04:24]} 16. Bxe5 {[%emt 0:11:10]} g6 {[%emt 0:06:06]} 17. Qh6 {[%emt 0:05:10]} Qd7 {[%emt 0:00:17]} 18. Rg1 {[%emt 0:04:58]} Rf7 {[%emt 0:08:03]} 19. gxf5 {[%emt 0:01:49]} Bxf5 {[%emt 0:00:09]} 20. Rxg6+ {[%emt 0:00:57]} Bxg6 {[%emt 0:00:14]} 21. Bxg6 {[%emt 0:00:09]} Re7 {[%emt 0:01:21]} 22. Bh5 {[%emt 0:09:35]} Qf5 {[%emt 0:02:29]} 23. Ke2 {[%emt 0:05:53]} Qd3+ {[%emt 0:00:45]} 24. Ke1 {[%emt 0:00:07]} Qf5 {[%emt 0:00:28]} 25. f4 {[%emt 0:02:11]} Nd7 {[%emt 0:04:30]} 26. Kf2 {[%emt 0:01:42]} Nxe5 {[%emt 0:01:02]} 27. dxe5 {[%emt 0:00:08]} Kh8 {[%emt 0:09:28]} 28. Bf3 {[%emt 0:00:56]} Rd8 {[%emt 0:00:35]} 29. Rg1 {[%emt 0:00:33]} Qc2+ {[%emt 0:01:35]} 30. Be2 {[%emt 0:00:05]} Qf5 {[%emt 0:00:20]} 31. Rg5 {[%emt 0:00:12]} Qf8 {[%emt 0:00:31]} 32. Qh4 {[%emt 0:00:37]} b5 {[%emt 0:01:13]} 33. Bg4 {[%emt 0:01:02]} d4 {[%emt 0:00:32]} 34. Rf5 {[%emt 0:00:14]} dxe3+ {[%emt 0:01:16]} 35. Kxe3 {[%emt 0:00:28]} Rd3+ {[%emt 0:00:44]} 36. Ke2 {[%emt 0:00:26]} Qg7 {[%emt 0:04:16]} 37. Rg5 {[%emt 0:00:40]} Qf8 {[%emt 0:01:06]} 38. Rf5 {[%emt 0:00:17]} Qg7 {[%emt 0:00:24]} 39. Rg5 {[%emt 0:00:56]} Qf8 {[%emt 0:00:10]} 40. Bf5 {[%emt 0:00:00]} Rd4 {[%emt 0:00:00]} 41. Qf2 {[%emt 0:10:25]} Qd8 {[%emt 0:06:06]} 42. Qe3 {[%emt 0:00:46]} b4 {[%emt 0:10:44]} 43. Kf3 {[%emt 0:05:34]} Rc7 {[%emt 0:06:05]} 44. Kg4 {[%emt 0:02:49]} c3 {[%emt 0:03:36]} 45. Be6 {[%emt 0:00:40]} Rg7 {[%emt 0:03:55]} 46. Rxg7 {[%emt 0:00:08]} Kxg7 {[%emt 0:00:05]} 47. bxc3 {[%emt 0:00:06]} bxc3 {[%emt 0:01:09]} 48. Bf5 {[%emt 0:05:37]} Qd5 {[%emt 0:04:22]} 49. Qxc3 {[%emt 0:01:17]} Qxe5 {[%emt 0:00:32]} 50. Qg3 {[%emt 0:01:15]} Kf7 {[%emt 0:01:36]} 51. Qf2 {[%emt 0:07:10]} h5+ {[%emt 0:01:47]} 52. Kg3 {[%emt 0:00:20]} Qc5 {[%emt 0:01:43]} 53. Bc2 {[%emt 0:00:27]} Kf6 {[%emt 0:00:36]} 54. Bb3 {[%emt 0:01:07]} Qc3+ {[%emt 0:00:53]} 55. Kh4 {[%emt 0:00:23]} Rd3 {[%emt 0:00:33]} 56. Kxh5 {[%emt 0:00:24]} Kf5 {[%emt 0:01:23]} 57. Be6+ {[%emt 0:00:49]} Kxe6 {[%emt 0:00:11]} 58. Qe2+ {[%emt 0:00:04]} Kf7 {[%emt 0:00:29]} 59. Qe4 {[%emt 0:00:42]} Qh8+ {[%emt 0:00:31]} 60. Kg4 {[%emt 0:00:22]} Qg7+ {[%emt 0:00:16]} 61. Kh4 {[%emt 0:00:08]} Qh6+ {[%emt 0:00:18]} 62. Kg4 {[%emt 0:00:06]} Qg6+ {[%emt 0:00:16]} 0-1

[Event "Mitropa Online Cup Women 2021"]
[Site "Hybrid"]
[Date "2021.05.04"]
[Round "6.4"]
[White "Vujnovic, Patricija"]
[Black "Monpeurt, Cyrielle"]
[Result "0-1"]
[ECO "A33"]
[WhiteElo "2129"]
[BlackElo "2166"]
[Annotator "NA"]
[PlyCount "136"]
[EventDate "2021.05.04"]
[EventType "team-tourn"]
[EventCountry "NET"]
[SourceTitle "playchess.com"]
[Source "ChessBase"]
[SourceQuality "1"]
[WhiteTeam "Croatia"]
[BlackTeam "France"]
[WhiteTeamCountry "CRO"]
[BlackTeamCountry "FRA"]
[TimeControl "40/5400+30:1800+30"]

1. c4 {[%emt 0:00:00]} c5 {[%emt 0:01:07]} 2. Nc3 {[%emt 0:00:11]} Nc6 {[%emt 0:01:01]} 3. Nf3 {[%emt 0:00:07]} Nf6 {[%emt 0:00:45]} 4. d4 {[%emt 0:00:09]} cxd4 {[%emt 0:01:13]} 5. Nxd4 {[%emt 0:00:06]} e6 {[%emt 0:00:17]} 6. Ndb5 {[%emt 0:00:11]} d5 {[%emt 0:10:14]} 7. Bf4 {[%emt 0:01:20]} e5 {[%emt 0:04:47]} 8. cxd5 {[%emt 0:00:17]} exf4 {[%emt 0:02:38]} 9. dxc6 {[%emt 0:00:45]} bxc6 {[%emt 0:00:44]} 10. Qxd8+ {[%emt 0:01:20]} Kxd8 {[%emt 0:00:13]} 11. Rd1+ {[%emt 0:00:36]} Bd7 {[%emt 0:00:59]} 12. Nd6 {[%emt 0:00:49]} Bxd6 {[%emt 0:07:30]} 13. Rxd6 {[%emt 0:00:33]} Rb8 {[%emt 0:00:09]} 14. Rd2 {[%emt 0:05:16]} Kc7 {[%emt 0:08:23]} 15. g3 {[%emt 0:01:03]} fxg3 {[%emt 0:08:53]} 16. hxg3 {[%emt 0:00:23]} Rhd8 {[%emt 0:00:19]} 17. Bg2 {[%emt 0:05:46]} Be6 {[%emt 0:02:52]} 18. Rxd8 {[%emt 0:11:13]} Kxd8 {[%emt 0:05:28]} 19. b3 {[%emt 0:01:02]} c5 {[%emt 0:01:59]} 20. Rh4 {[%emt 0:04:12]} Rb4 {[%emt 0:02:06]} 21. Na4 {[%emt 0:44:53]} Rxh4 {[%emt 0:06:12]} 22. gxh4 {[%emt 0:00:16]} Nd7 {[%emt 0:00:14]} 23. Kd2 {[%emt 0:03:15]} Kc7 {[%emt 0:02:15]} 24. Nc3 {[%emt 0:04:22]} a5 {[%emt 0:05:54]} 25. Nd5+ {[%emt 0:01:43]} Kd6 {[%emt 0:01:21]} 26. Nf4 {[%emt 0:00:06]} Ne5 {[%emt 0:03:44]} 27. Nxe6 {[%emt 0:00:35]} Kxe6 {[%emt 0:00:27]} 28. Kc3 {[%emt 0:03:40]} Kd6 {[%emt 0:01:54]} 29. Be4 {[%emt 0:03:20]} Ng4 {[%emt 0:02:57]} 30. f4 {[%emt 0:00:37]} Nf6 {[%emt 0:00:21]} 31. Bf3 {[%emt 0:00:25]} Nd5+ {[%emt 0:05:29]} 32. Kc4 {[%emt 0:00:10]} Nxf4 {[%emt 0:01:58]} 33. Kb5 {[%emt 0:01:04]} Ng6 {[%emt 0:01:32]} 34. h5 {[%emt 0:01:04]} Ne5 {[%emt 0:00:17]} 35. Be4 {[%emt 0:00:18]} g6 {[%emt 0:00:45]} 36. hxg6 {[%emt 0:01:46]} fxg6 {[%emt 0:00:36]} 37. Kxa5 {[%emt 0:00:37]} h5 {[%emt 0:03:09]} 38. Kb6 {[%emt 0:01:34]} g5 {[%emt 0:03:12]} 39. a4 {[%emt 0:00:23]} Nd7+ {[%emt 0:00:32]} 40. Kb7 {[%emt 0:00:00]} c4 {[%emt 0:00:00]} 41. b4 {[%emt 0:02:11]} Nf6 {[%emt 0:10:31]} 42. a5 {[%emt 0:15:34]} Nxe4 {[%emt 0:00:22]} 43. a6 {[%emt 0:00:03]} c3 {[%emt 0:00:39]} 44. a7 {[%emt 0:00:02]} c2 {[%emt 0:00:22]} 45. a8=Q {[%emt 0:00:04]} c1=Q {[%emt 0:00:19]} 46. Qd8+ {[%emt 0:05:21]} Ke5 {[%emt 0:01:10]} 47. Qe8+ {[%emt 0:00:13]} Kd4 {[%emt 0:02:26]} 48. Qh8+ {[%emt 0:01:41]} Ke3 {[%emt 0:00:43]} 49. Qxh5 {[%emt 0:00:05]} Qc4 {[%emt 0:02:44]} 50. Qh3+ {[%emt 0:04:45]} Kxe2 {[%emt 0:00:43]} 51. Qg2+ {[%emt 0:00:37]} Kd3 {[%emt 0:01:11]} 52. Qf1+ {[%emt 0:00:53]} Kc3 {[%emt 0:02:54]} 53. Qe1+ {[%emt 0:00:25]} Kb3 {[%emt 0:01:36]} 54. Ka7 {[%emt 0:02:50]} Ka4 {[%emt 0:03:54]} 55. Qa1+ {[%emt 0:02:09]} Kxb4 {[%emt 0:00:14]} 56. Qb2+ {[%emt 0:00:43]} Kc5 {[%emt 0:00:37]} 57. Qe5+ {[%emt 0:00:45]} Qd5 {[%emt 0:00:46]} 58. Qe7+ {[%emt 0:00:37]} Kd4 {[%emt 0:00:36]} 59. Qb4+ {[%emt 0:00:18]} Qc4 {[%emt 0:01:35]} 60. Qb2+ {[%emt 0:00:20]} Kd5 {[%emt 0:00:49]} 61. Qb7+ {[%emt 0:00:11]} Kd6 {[%emt 0:01:29]} 62. Qb6+ {[%emt 0:01:11]} Kd7 {[%emt 0:00:26]} 63. Qb2 {[%emt 0:01:22]} Qc7+ {[%emt 0:02:50]} 64. Ka8 {[%emt 0:00:41]} Qa5+ {[%emt 0:01:35]} 65. Kb8 {[%emt 0:00:10]} Qd8+ {[%emt 0:01:22]} 66. Ka7 {[%emt 0:00:18]} Nd6 {[%emt 0:00:28]} 67. Qg7+ {[%emt 0:00:39]} Qe7 {[%emt 0:00:16]} 68. Qc3 {[%emt 0:00:58]} Nb5+ {[%emt 0:00:17]} 0-1

[Event "Mitropa Online Cup Women 2021"]
[Site "Hybrid"]
[Date "2021.05.04"]
[Round "6.4"]
[White "Afraoui, Anaelle"]
[Black "Radikovic, Anamarija"]
[Result "0-1"]
[ECO "B90"]
[WhiteElo "2106"]
[BlackElo "2006"]
[Annotator "NA"]
[PlyCount "140"]
[EventDate "2021.05.04"]
[EventType "team-tourn"]
[EventCountry "NET"]
[SourceTitle "playchess.com"]
[Source "ChessBase"]
[SourceQuality "1"]
[WhiteTeam "France"]
[BlackTeam "Croatia"]
[WhiteTeamCountry "FRA"]
[BlackTeamCountry "CRO"]
[TimeControl "40/5400+30:1800+30"]

1. e4 {[%emt 0:00:00]} c5 {[%emt 0:00:03]} 2. Nf3 {[%emt 0:00:14]} d6 {[%emt 0:00:03]} 3. d4 {[%emt 0:00:41]} cxd4 {[%emt 0:00:02]} 4. Nxd4 {[%emt 0:00:20]} Nf6 {[%emt 0:00:02]} 5. Nc3 {[%emt 0:00:32]} a6 {[%emt 0:00:03]} 6. Be3 {[%emt 0:00:36]} e5 {[%emt 0:00:05]} 7. Nf3 {[%emt 0:00:21]} Be7 {[%emt 0:01:23]} 8. Bc4 {[%emt 0:02:36]} O-O {[%emt 0:00:30]} 9. O-O {[%emt 0:00:16]} Nc6 {[%emt 0:02:44]} 10. Qd2 {[%emt 0:08:06]} Bg4 {[%emt 0:02:51]} 11. Nh4 {[%emt 0:08:23]} Rc8 {[%emt 0:10:18]} 12. Bb3 {[%emt 0:03:20]} b5 {[%emt 0:01:18]} 13. Nf5 {[%emt 0:02:45]} b4 {[%emt 0:11:25]} 14. Nd5 {[%emt 0:04:07]} Nxe4 {[%emt 0:01:17]} 15. Nfxe7+ {[%emt 0:01:21]} Nxe7 {[%emt 0:00:04]} 16. Nxe7+ {[%emt 0:01:21]} Qxe7 {[%emt 0:00:04]} 17. Qxb4 {[%emt 0:00:19]} Bf5 {[%emt 0:01:07]} 18. f4 {[%emt 0:11:01]} exf4 {[%emt 0:03:58]} 19. Rxf4 {[%emt 0:01:43]} Bg6 {[%emt 0:09:25]} 20. Re1 {[%emt 0:03:39]} Qe5 {[%emt 0:06:50]} 21. Rf3 {[%emt 0:07:28]} a5 {[%emt 0:03:09]} 22. Qa3 {[%emt 0:14:48]} Ng5 {[%emt 0:13:33]} 23. Rf2 {[%emt 0:02:48]} Ne4 {[%emt 0:08:51]} 24. Rff1 {[%emt 0:00:24]} Nf6 {[%emt 0:01:43]} 25. c3 {[%emt 0:06:52]} Rfe8 {[%emt 0:04:34]} 26. Bf2 {[%emt 0:01:35]} Ne4 {[%emt 0:03:31]} 27. Qa4 {[%emt 0:06:12]} Rb8 {[%emt 0:05:37]} 28. Bd4 {[%emt 0:02:01]} Qg5 {[%emt 0:00:36]} 29. Bb6 {[%emt 0:01:47]} Nf6 {[%emt 0:02:12]} 30. Qxa5 {[%emt 0:01:46]} Qd2 {[%emt 0:00:58]} 31. Rxe8+ {[%emt 0:05:48]} Rxe8 {[%emt 0:00:05]} 32. Bd4 {[%emt 0:01:15]} Be4 {[%emt 0:01:29]} 33. Bf2 {[%emt 0:01:05]} Qxb2 {[%emt 0:01:51]} 34. Qc7 {[%emt 0:00:35]} d5 {[%emt 0:00:23]} 35. c4 {[%emt 0:00:16]} Bd3 {[%emt 0:00:36]} 36. Rd1 {[%emt 0:00:40]} Ng4 {[%emt 0:00:57]} 37. Ba7 {[%emt 0:00:47]} Qe2 {[%emt 0:01:51]} 38. Qg3 {[%emt 0:00:31]} dxc4 {[%emt 0:00:15]} 39. Ba4 {[%emt 0:00:30]} Ra8 {[%emt 0:00:51]} 40. Re1 {[%emt 0:00:00]} Qd2 {[%emt 0:00:00]} 41. Bc6 {[%emt 0:06:03]} Rf8 {[%emt 0:04:29]} 42. Bc5 {[%emt 0:01:44]} Rd8 {[%emt 0:03:55]} 43. Be7 {[%emt 0:01:19]} Be2 {[%emt 0:00:59]} 44. h3 {[%emt 0:04:33]} Rc8 {[%emt 0:13:05]} 45. hxg4 {[%emt 0:05:00]} c3 {[%emt 0:00:18]} 46. Bb4 {[%emt 0:06:38]} Qd4+ {[%emt 0:02:33]} 47. Qf2 {[%emt 0:00:25]} Qxb4 {[%emt 0:00:05]} 48. Rxe2 {[%emt 0:00:56]} Qb1+ {[%emt 0:00:28]} 49. Re1 {[%emt 0:01:36]} c2 {[%emt 0:00:20]} 50. Be4 {[%emt 0:03:39]} Qxe1+ {[%emt 0:00:47]} 51. Qxe1 {[%emt 0:00:57]} c1=Q {[%emt 0:00:05]} 52. Qxc1 {[%emt 0:00:19]} Rxc1+ {[%emt 0:00:04]} 53. Kf2 {[%emt 0:00:56]} Rc4 {[%emt 0:00:11]} 54. Ke3 {[%emt 0:00:31]} Ra4 {[%emt 0:00:05]} 55. Bd5 {[%emt 0:00:34]} Rxg4 {[%emt 0:00:08]} 56. Be4 {[%emt 0:00:28]} Rg3+ {[%emt 0:00:27]} 57. Kd4 {[%emt 0:00:15]} Ra3 {[%emt 0:00:05]} 58. Bd5 {[%emt 0:00:13]} Kf8 {[%emt 0:00:04]} 59. Bb3 {[%emt 0:00:23]} Ke7 {[%emt 0:00:08]} 60. Kc5 {[%emt 0:00:13]} f5 {[%emt 0:00:28]} 61. Kb4 {[%emt 0:00:09]} Ra7 {[%emt 0:00:10]} 62. a4 {[%emt 0:00:11]} Kd6 {[%emt 0:00:45]} 63. a5 {[%emt 0:00:10]} Rb7+ {[%emt 0:01:52]} 64. Kc4 {[%emt 0:01:08]} Rxb3 {[%emt 0:02:30]} 65. Kxb3 {[%emt 0:00:07]} f4 {[%emt 0:00:17]} 66. Kc4 {[%emt 0:00:13]} Kc6 {[%emt 0:00:16]} 67. Kd4 {[%emt 0:00:14]} h5 {[%emt 0:00:07]} 68. Ke4 {[%emt 0:00:22]} g5 {[%emt 0:00:04]} 69. Kf5 {[%emt 0:00:34]} h4 {[%emt 0:00:10]} 70. Kxg5 {[%emt 0:00:50]} h3 {[%emt 0:00:16]} 0-1

[Event "Mitropa Online Cup Women 2021"]
[Site "Hybrid"]
[Date "2021.05.04"]
[Round "6.5"]
[White "Zimina, Olga"]
[Black "Urh, Zala"]
[Result "0-1"]
[ECO "E04"]
[WhiteElo "2354"]
[BlackElo "2173"]
[Annotator "NA"]
[PlyCount "112"]
[EventDate "2021.05.04"]
[EventType "team-tourn"]
[EventCountry "NET"]
[SourceTitle "playchess.com"]
[Source "ChessBase"]
[SourceQuality "1"]
[WhiteTeam "Italy"]
[BlackTeam "Slovenia"]
[WhiteTeamCountry "ITA"]
[BlackTeamCountry "SLO"]
[TimeControl "40/5400+30:1800+30"]

1. d4 {[%emt 0:00:00]} Nf6 {[%emt 0:00:08]} 2. c4 {[%emt 0:00:16]} e6 {[%emt 0:00:06]} 3. g3 {[%emt 0:00:07]} d5 {[%emt 0:00:10]} 4. Bg2 {[%emt 0:00:14]} dxc4 {[%emt 0:00:25]} 5. Nf3 {[%emt 0:00:09]} Bb4+ {[%emt 0:00:16]} 6. Bd2 {[%emt 0:00:07]} a5 {[%emt 0:00:19]} 7. Qc2 {[%emt 0:00:10]} Bxd2+ {[%emt 0:00:18]} 8. Qxd2 {[%emt 0:00:07]} c6 {[%emt 0:00:26]} 9. a4 {[%emt 0:00:12]} Ne4 {[%emt 0:00:30]} 10. Qf4 {[%emt 0:00:10]} Qb6 {[%emt 0:01:57]} 11. O-O {[%emt 0:00:11]} Qxb2 {[%emt 0:01:11]} 12. Na3 {[%emt 0:00:10]} Nc3 {[%emt 0:01:09]} 13. Qe3 {[%emt 0:02:13]} Nd5 {[%emt 0:04:21]} 14. Qg5 {[%emt 0:02:02]} O-O {[%emt 0:02:03]} 15. e4 {[%emt 0:09:56]} h6 {[%emt 0:12:47]} 16. Qh5 {[%emt 0:14:59]} Nc3 {[%emt 0:12:58]} 17. Nxc4 {[%emt 0:01:20]} Qb4 {[%emt 0:00:55]} 18. Nfd2 {[%emt 0:20:06]} b5 {[%emt 0:07:14]} 19. axb5 {[%emt 0:04:20]} cxb5 {[%emt 0:01:58]} 20. e5 {[%emt 0:06:44]} Ra7 {[%emt 0:03:21]} 21. Nd6 {[%emt 0:00:48]} Bd7 {[%emt 0:12:05]} 22. N2e4 {[%emt 0:02:31]} Nxe4 {[%emt 0:01:11]} 23. Nxe4 {[%emt 0:09:59]} Bc6 {[%emt 0:07:25]} 24. Rab1 {[%emt 0:10:01]} Qe7 {[%emt 0:05:46]} 25. f4 {[%emt 0:03:09]} b4 {[%emt 0:06:03]} 26. g4 {[%emt 0:00:27]} Qd8 {[%emt 0:02:25]} 27. Rbd1 {[%emt 0:01:03]} Rd7 {[%emt 0:03:56]} 28. g5 {[%emt 0:03:21]} Rxd4 {[%emt 0:01:16]} 29. gxh6 {[%emt 0:02:55]} g6 {[%emt 0:00:34]} 30. Qe2 {[%emt 0:03:13]} a4 {[%emt 0:02:22]} 31. Rc1 {[%emt 0:01:48]} Rxe4 {[%emt 0:03:08]} 32. Qf2 {[%emt 0:00:15]} Bd5 {[%emt 0:02:01]} 33. Bxe4 {[%emt 0:02:23]} Bxe4 {[%emt 0:00:07]} 34. Rc4 {[%emt 0:00:06]} Bd5 {[%emt 0:02:03]} 35. Rxb4 {[%emt 0:00:19]} a3 {[%emt 0:00:06]} 36. h4 {[%emt 0:01:00]} Qa5 {[%emt 0:01:17]} 37. Rbb1 {[%emt 0:01:02]} a2 {[%emt 0:00:45]} 38. Ra1 {[%emt 0:00:23]} Nd7 {[%emt 0:00:45]} 39. Kh2 {[%emt 0:00:08]} Qc5 {[%emt 0:01:01]} 40. Qg3 {[%emt 0:00:00]} Rb8 {[%emt 0:00:00]} 41. h7+ {[%emt 0:07:31]} Kh8 {[%emt 0:03:49]} 42. Rfc1 {[%emt 0:03:40]} Qd4 {[%emt 0:03:35]} 43. Rd1 {[%emt 0:02:37]} Rb2+ {[%emt 0:03:00]} 44. Kh3 {[%emt 0:00:22]} Qxd1 {[%emt 0:03:00]} 45. Rxd1 {[%emt 0:00:46]} Rb3 {[%emt 0:00:08]} 46. Ra1 {[%emt 0:04:04]} Rxg3+ {[%emt 0:00:12]} 47. Kxg3 {[%emt 0:00:21]} Nc5 {[%emt 0:00:28]} 48. Kg4 {[%emt 0:00:18]} Kxh7 {[%emt 0:00:24]} 49. h5 {[%emt 0:00:09]} gxh5+ {[%emt 0:00:08]} 50. Kxh5 {[%emt 0:00:02]} Nd3 {[%emt 0:00:32]} 51. Kg5 {[%emt 0:00:08]} Kg7 {[%emt 0:00:47]} 52. Rg1 {[%emt 0:01:10]} Be4 {[%emt 0:01:16]} 53. f5 {[%emt 0:05:26]} Bxf5 {[%emt 0:00:24]} 54. Ra1 {[%emt 0:00:12]} Nb4 {[%emt 0:00:16]} 55. Kf4 {[%emt 0:00:04]} Bb1 {[%emt 0:00:06]} 56. Ke3 {[%emt 0:00:13]} Nc2+ {[%emt 0:00:05]} 0-1